[Event "13th KIIT Festival-A 2022"]
[Site "Bhubaneswar"]
[Date "2022.05.23"]
[Round "2.19"]
[White "Swayham P Das"]
[Black "Sidhant, Mohapatra"]
[Result "0-1"]
[ECO "B92"]
[WhiteElo "1825"]
[BlackElo "2327"]
[Annotator "TA"]
[PlyCount "78"]
[EventDate "2022.05.15"]
[EventType "swiss"]
[EventCountry "IND"]
[SourceTitle "playchess.com"]
[Source "ChessBase"]
[SourceQuality "1"]
[TimeControl "5400+30"]

{[%evp 16,78,5,-11,0,-10,-4,-4,-10,-17,-27,-23,0,0,21,0,0,0,9,0,0,10,0,0,24,2,18,0,0,-87,-74,-72,-82,-129,-129,-139,-143,-130,-91,-106,-95,-192,-160,-308,-292,-329,-326,-316,-246,-375,-365,-431,-410,-528,-518,-778,-772,-1378,-1362,-2135,-2031,-1880,-1599,-29982,-5251]} 1. e4 {[%emt 0:00:05]} c5 {[%emt 0:00:19]} 2. Nf3 {[%emt 0:00:06]} d6 {[%emt 0:00:06]} 3. d4 {[%emt 0:00:09]} cxd4 {[%emt 0:00:07]} 4. Nxd4 {[%emt 0:00:07]} Nf6 {[%emt 0:00:08]} 5. Nc3 {[%emt 0:00:04]} a6 {[%emt 0:00:08]} 6. Be2 {[%emt 0:00:09]} e5 {[%emt 0:01:04]} 7. Nb3 {[%emt 0:00:05]} Be7 {[%emt 0:00:11]} 8. O-O {[%emt 0:00:07]} O-O {[%emt 0:00:10]} 9. f4 {[%emt 0:00:27]} Re8 {[%emt 0:06:25] B92: Sicilian Najdorf: 6 Be2.} 10. Kh1 {[%emt 0:03:27]} Nc6 {[%emt 0:01:04]} 11. a4 {[%emt 0:01:07]} h6 {[%emt 0:03:50] The position is equal.} 12. Be3 {[%emt 0:00:38]} exf4 {[%emt 0:00:11] [#]} 13. Rxf4 $146 {[%emt 0:00:20]} ({Predecessor:} 13. Bxf4 Bf8 14. Nd4 Nxe4 15. Nxe4 Rxe4 16. Nxc6 bxc6 17. Bd3 Re6 18. Qf3 Qe8 19. Bd2 {½-½ (37) Spierenburg,P (1968)-Audie,A (2300) ICCF email 2019}) 13... Bf8 {[%emt 0:02:01]} 14. Qf1 {[%emt 0:04:08]} Be6 {[%emt 0:10:24]} 15. Rd1 {[%emt 0:01:38]} Ne5 {[%emt 0:02:23]} 16. Nd4 {[%emt 0:07:56]} Ng6 {[%emt 0:02:57]} 17. Rf2 {[%emt 0:01:40]} Ng4 {[%emt 0:06:04]} 18. Bxg4 {[%emt 0:00:13]} Bxg4 {[%emt 0:00:03]} 19. Re1 {[%emt 0:01:19]} (19. Rxf7 Bxd1 20. Nxd1 (20. Rxb7 Bg4 $17) 20... Rxe4 21. Rxb7 Qc8 22. Qf7+ Kh8 $17) 19... Ne5 {[%emt 0:00:53][%cal Bg6e5,Be5g4,Bg4e3][%mdl 32]} (19... Be6 $5) 20. Nd5 {[%emt 0:01:31]} Rc8 {[%emt 0:00:59]} 21. Nf5 {[%emt 0:03:59]} Bxf5 {[%emt 0:03:25]} 22. exf5 {[%emt 0:09:59]} (22. Rxf5 $11 {remains equal.} Rxc2 23. Bd4) 22... Qa5 {[%emt 0:02:06][%csl LRa4,LRd5]} 23. Rd1 {[%emt 0:10:33]} Ng4 {[%emt 0:02:29]} 24. Re2 {[%emt 0:00:46]} ({Better is} 24. Rf3) 24... Nxe3 $17 {[%emt 0:01:49]} ({Weaker is} 24... Qxa4 25. Bd4 $11) 25. Rxe3 {[%emt 0:00:24]} Rxe3 {[%emt 0:01:24]} ({Don't play} 25... Qxa4 $6 26. Rg3 $11) 26. Nxe3 {[%emt 0:00:05]} Qxa4 {[%emt 0:00:12]} 27. f6 {[%emt 0:00:23]} g6 {[%emt 0:01:07]} 28. Qf3 {[%emt 0:00:09]} (28. b3 $17 {is a better defense.} Qe4 29. Qd3 Qxd3 30. Rxd3) 28... Qc6 {[%emt 0:01:30]} 29. Qh3 {[%emt 0:08:45]} (29. Qxc6 $17 {was necessary.} bxc6 30. Nc4) 29... Re8 $19 {[%emt 0:00:43]} 30. Qg3 {[%emt 0:17:28]} Qe4 {[%emt 0:04:38]} 31. Rd3 {[%emt 0:10:25]} Re6 {[%emt 0:06:17]} 32. Qf2 {[%emt 0:01:01]} (32. Qf3 $142) 32... d5 {[%emt 0:00:12] [#] ...Bc5 is the strong threat.} 33. Nf1 {[%emt 0:04:42]} ({Much weaker is} 33. Nxd5 Qe1+ 34. Qg1 Bc5 $19) 33... Qe5 {[%emt 0:03:55]} 34. Rf3 {[%emt 0:00:30]} Qxb2 {[%emt 0:00:10] aiming for ...a5.} 35. h3 {[%emt 0:01:08]} (35. h4 $142) 35... a5 {[%emt 0:00:45][%cal Ba6a5,Ba5a4,Ba4a3][%mdl 32]} 36. Ng3 {[%emt 0:04:18]} a4 {[%emt 0:00:28] [#] White must now prevent ...a3.} 37. Qa7 {[%emt 0:00:29]} a3 {[%emt 0:00:50]} 38. Rb3 {[%emt 0:00:12]} Qxf6 {[%emt 0:00:12][%cal Oa3a2] ( -> ...a2!)} 39. Rxb7 {[%emt 0:00:10]} Ra6 {[%emt 0:00:22] Weighted Error Value: White=0.89/Black=0.17 (very precise)} (39... Re1+ $142 40. Kh2 Bd6 41. Rd7 Bxg3+ 42. Kxg3 Qe5+ 43. Kf2 a2 44. Rd8+ Kg7 45. Qa3 a1=Q 46. Qf8+ Kf6 47. Rd6+ Kg5 48. Rxg6+ Kxg6 49. Qg8+ Kf6 50. Qh8+ Ke7 51. Qxe5+ Qxe5 52. g4 Qe3+ 53. Kg2 Rg1+ 54. Kh2 Qg3#) 0-1

[Event "13th KIIT Festival-A 2022"]
[Site "Bhubaneswar"]
[Date "2022.05.24"]
[Round "3.1"]
[White "Sidhant, Mohapatra"]
[Black "Amonatov, Farrukh"]
[Result "0-1"]
[ECO "B99"]
[WhiteElo "2327"]
[BlackElo "2622"]
[Annotator "TA"]
[PlyCount "104"]
[EventDate "2022.05.15"]
[EventType "swiss"]
[EventCountry "IND"]
[SourceTitle "playchess.com"]
[Source "ChessBase"]
[SourceQuality "1"]
[TimeControl "5400+30"]

{[%evp 22,104,54,66,52,58,66,24,26,26,35,29,41,56,43,19,25,25,25,24,34,24,27,0,0,0,0,0,6,0,2,0,0,0,0,0,0,0,0,0,0,0,0,0,0,0,0,-14,-15,-16,-16,-57,-57,-87,-87,-137,-151,-441,-436,-411,-391,-342,-335,-482,-227,-204,-204,-29962,-29963,-29961,-29963,-29973,-29974,-29974,-29974,-29974,-29975,-29979,-29980,-29980,-29981,-29981,-818,-29982,-29983]} 1. e4 {[%emt 0:00:07]} c5 {[%emt 0:00:09]} 2. Nf3 {[%emt 0:00:11]} d6 {[%emt 0:00:09]} 3. d4 {[%emt 0:00:08]} cxd4 {[%emt 0:00:07]} 4. Nxd4 {[%emt 0:00:09]} Nf6 {[%emt 0:00:09]} 5. Nc3 {[%emt 0:00:07]} a6 {[%emt 0:00:06]} 6. Bg5 {[%emt 0:00:54]} e6 {[%emt 0:00:53]} 7. f4 {[%emt 0:00:08]} Be7 {[%emt 0:00:31]} 8. Qf3 {[%emt 0:00:09]} h6 {[%emt 0:00:13]} 9. Bh4 {[%emt 0:00:08]} Qc7 {[%emt 0:00:15]} 10. O-O-O {[%emt 0:00:25]} Nbd7 {[%emt 0:00:05]} 11. Be2 {[%emt 0:00:19]} Rb8 {[%emt 0:07:05]} 12. Qg3 {[%emt 0:10:17] Threatens to win with e5.} O-O {[%emt 0:06:12] B99: Sicilian Najdorf: 6 Bg5 e6 7 f4 Be7 8 Qf3 Qc7 9 0-0-0 Nbd7.} 13. Bf3 {[%emt 0:08:24]} Nb6 {[%emt 0:23:09]} 14. e5 {[%emt 0:13:22]} dxe5 {[%emt 0:01:22] White has an edge.} 15. fxe5 {[%emt 0:00:08]} Nfd5 {[%emt 0:01:00] [#]} 16. Bxd5 $146 {[%emt 0:04:59] Strongly threatening Bxe7.} ({Predecessor:} 16. Nxd5 Nxd5 17. Bxd5 Bxh4 18. Qxh4 exd5 19. Rhe1 Re8 20. Re3 Bd7 21. Rde1 Rbc8 22. Qf4 {1-0 (31) Kotronias,V (2614)-Kulaots,K (2547) Heraklion 2007}) 16... Nxd5 {[%emt 0:05:05]} 17. Nxd5 {[%emt 0:00:10]} exd5 {[%emt 0:00:06]} 18. Bf6 {[%emt 0:00:07]} Bxf6 {[%emt 0:00:22]} 19. exf6 {[%emt 0:00:02][%csl Gf6][%cal Rg3g7]} Qxg3 {[%emt 0:00:08]} 20. hxg3 {[%emt 0:00:10]} Bg4 {[%emt 0:00:35]} 21. fxg7 {[%emt 0:02:36]} Kxg7 {[%emt 0:00:16]} 22. Rde1 {[%emt 0:00:04]} Rfe8 {[%emt 0:01:20]} 23. Kd2 {[%emt 0:01:09]} Rxe1 {[%emt 0:22:28]} 24. Rxe1 $11 {[%emt 0:00:13][%mdl 4096] Endgame KRB-KRN} Kf6 {[%emt 0:00:03]} 25. Rf1+ {[%emt 0:01:45]} Ke7 {[%emt 0:00:54]} 26. Nf5+ {[%emt 0:03:12]} Bxf5 {[%emt 0:00:19]} 27. Rxf5 {[%emt 0:00:02] KR-KR} Rg8 {[%emt 0:00:09]} 28. Rf3 {[%emt 0:00:06]} Ke6 {[%emt 0:01:02]} 29. Ke2 {[%emt 0:00:19]} Rg4 {[%emt 0:01:17]} 30. Rb3 {[%emt 0:00:38]} Rc4 {[%emt 0:11:29]} 31. Kd2 {[%emt 0:06:50]} b5 {[%emt 0:01:48]} 32. Ra3 {[%emt 0:00:21]} Rc6 {[%emt 0:00:05]} 33. Rf3 {[%emt 0:00:19]} f5 {[%emt 0:00:12]} 34. Rf4 {[%emt 0:02:02]} Ke5 {[%emt 0:00:53]} 35. Rf3 {[%emt 0:04:21]} d4 {[%emt 0:03:09]} 36. b4 {[%emt 0:09:30]} h5 {[%emt 0:01:45]} 37. Ra3 {[%emt 0:07:27]} Ke4 {[%emt 0:02:06]} 38. Rf3 {[%emt 0:00:11]} (38. Kd1 $142) 38... Rg6 $1 $17 {[%emt 0:01:07]} 39. Rf4+ $2 {[%emt 0:10:20] This costs White the game.} (39. c3 $17) 39... Ke5 $19 {[%emt 0:01:21]} 40. Rf3 {[%emt 0:00:01] [#]} h4 $1 {[%emt 0:02:29]} 41. gxh4 {[%emt 0:00:05]} Rxg2+ {[%emt 0:00:04]} 42. Kd1 {[%emt 0:00:05]} (42. Kd3 {was worth a try.} Rh2 43. Rf1) 42... Rh2 {[%emt 0:00:06]} (42... f4 $142 {Hoping for ...Ke4.} 43. Rf1 Rh2) 43. Ra3 {[%emt 0:00:02]} f4 {[%emt 0:00:18] And now ...Ke4 would win.} (43... Rxh4 44. Rxa6 f4 45. Rc6) 44. Rxa6 $2 {[%emt 0:00:12] [#]} (44. h5 $19) 44... f3 $1 {[%emt 0:00:21]} 45. Ke1 {[%emt 0:00:04]} Rxc2 {[%emt 0:00:31]} 46. Ra8 {[%emt 0:01:01]} d3 {[%emt 0:00:50]} 47. Re8+ {[%emt 0:00:06]} Kf4 {[%emt 0:00:47]} 48. Rf8+ {[%emt 0:00:24]} Kg3 {[%emt 0:00:13]} 49. h5 {[%emt 0:00:12]} f2+ {[%emt 0:01:32]} 50. Kd1 {[%emt 0:00:05]} Rxa2 {[%emt 0:00:07]} 51. h6 {[%emt 0:00:21]} Ra1+ {[%emt 0:00:59]} 52. Kd2 {[%emt 0:22:03]} f1=Q {[%emt 0:00:07] Weighted Error Value: White=0.36/Black=0.19 (very precise)} 0-1

[Event "13th KIIT Festival-A 2022"]
[Site "Bhubaneswar"]
[Date "2022.05.24"]
[Round "3.2"]
[White "Paichadze, Luka"]
[Black "Aaryan Varshney"]
[Result "1/2-1/2"]
[ECO "B20"]
[WhiteElo "2567"]
[BlackElo "2308"]
[Annotator "TA"]
[PlyCount "120"]
[EventDate "2022.05.15"]
[EventType "swiss"]
[EventCountry "IND"]
[SourceTitle "playchess.com"]
[Source "ChessBase"]
[SourceQuality "1"]
[TimeControl "5400+30"]

{[%evp 9,120,0,0,0,0,0,0,0,0,0,0,0,15,0,0,0,0,0,0,0,0,0,0,0,0,-14,-26,-48,-9,-6,0,0,0,0,0,0,0,0,0,0,36,56,56,0,0,3,4,0,0,0,0,0,0,0,12,8,8,8,8,14,31,0,1,0,0,0,0,0,0,0,0,0,0,0,0,0,0,0,0,0,0,0,0,0,0,0,0,0,0,0,0,0,0,0,0,0,0,0,0,0,0,0,0,0,0,0,0,0,0,0,0,0,0]} 1. e4 {[%emt 0:00:04]} c5 {[%emt 0:02:44]} 2. b3 {[%emt 0:00:58]} Nc6 {[%emt 0:00:20]} 3. Bb2 {[%emt 0:00:06]} e5 {[%emt 0:00:23]} 4. Bc4 {[%emt 0:00:25]} Nf6 {[%emt 0:00:25]} 5. d3 {[%emt 0:00:23]} d6 {[%emt 0:00:26]} 6. Ne2 {[%emt 0:00:40] B20: Sicilian: Unusual White 2nd moves.} Be7 {[%emt 0:00:21]} 7. O-O {[%emt 0:00:10]} O-O {[%emt 0:00:39]} 8. Nbc3 {[%emt 0:00:08]} a6 {[%emt 0:00:13] 8...a6 is better than 8...Be6.} 9. a4 {[%emt 0:00:08] Against b5} Rb8 {[%emt 0:00:33]} 10. h3 {[%emt 0:02:05]} Nd4 {[%emt 0:01:14]} 11. f4 {[%emt 0:02:49]} b5 {[%emt 0:01:15]} 12. axb5 {[%emt 0:00:58]} axb5 {[%emt 0:00:19]} 13. Nxd4 {[%emt 0:03:03]} exd4 {[%emt 0:00:31]} 14. Nxb5 {[%emt 0:00:23]} d5 {[%emt 0:00:04]} 15. exd5 {[%emt 0:01:48]} Nxd5 {[%emt 0:00:39]} 16. Bxd5 {[%emt 0:16:21]} Qxd5 {[%emt 0:00:10]} 17. Na3 {[%emt 0:02:55]} Bb7 {[%emt 0:01:56][%csl Gb7][%cal Rd5g2] [#]} (17... Bh4 {keeps more tension.} 18. Nc4 Re8 19. Ne5 f6) 18. Qf3 $146 {[%emt 0:00:34]} ({Predecessor:} 18. Qd2 Bh4 19. Nc4 Rfe8 20. Ra5 Be1 21. Rxc5 Qxc5 22. Rxe1 Bd5 23. Rxe8+ Rxe8 24. Qf2 {0-1 (43) Hovhannisyan,K-Avetisian,T (1991) Batumi 2010}) 18... Qxf3 {[%emt 0:02:07]} (18... Bh4 {with more complications.} 19. Nc4 Rfe8 20. Ne5 f6) 19. gxf3 {[%emt 0:04:28]} Rfe8 {[%emt 0:00:16]} 20. Nc4 {[%emt 0:01:33]} Bc8 21. Rfe1 {[%emt 0:12:35][%cal Oc4d6] [#] Nd6! is the strong threat.} Bxh3 {[%emt 0:02:04]} 22. Ra5 {[%emt 0:00:31]} h6 {[%emt 0:29:03]} 23. Ba3 {[%emt 0:09:49]} Bh4 $1 {[%emt 0:11:08] This bishop pair is nice.} 24. Re4 {[%emt 0:00:28]} (24. Rxe8+ Rxe8 25. Kh2 Bf5 26. Bxc5 (26. Rxc5 Re2+ 27. Kg1 g6 $17) 26... Re2+ 27. Kh1 Rxc2 28. Bxd4 Bxd3 $17) 24... f5 {[%emt 0:11:42]} (24... Bf5 $5 {[%cal Rf5e4]}) 25. Rxe8+ {[%emt 0:08:41]} Rxe8 {[%emt 0:00:03]} 26. Kh2 {[%emt 0:01:18] Inhibits Bg3+.} (26. Rxc5 $2 Re2 27. Bb4 Bg3 $19) ({Better is} 26. Ne5 $1 $14) 26... Bf1 $11 {[%emt 0:00:28]} 27. Ne5 $1 {[%emt 0:00:15]} ({Don't blunder} 27. Rxc5 $2 Re2+ 28. Kh1 (28. Kg1 $2 Bh3 $19) 28... Bg3 $19) 27... Be1 {[%emt 0:05:01]} 28. Rxc5 {[%emt 0:00:47]} Bd2 {[%emt 0:00:26]} 29. Kg3 {[%emt 0:04:38]} Be1+ $1 {[%emt 0:00:13]} 30. Kh2 {[%emt 0:00:05]} Bd2 {[%emt 0:00:06]} 31. Kg1 {[%emt 0:06:07]} Bh3 {[%emt 0:03:49]} 32. Bb2 {[%emt 0:01:18]} Be3+ {[%emt 0:01:59]} 33. Kh2 {[%emt 0:00:07]} Bxf4+ {[%emt 0:08:26]} 34. Kxh3 {[%emt 0:00:05]} Bxe5 {[%emt 0:00:48][%mdl 4096] Endgame KRB-KRB} 35. Rd5 {[%emt 0:00:16]} Bc7 {[%emt 0:01:17] The position is equal.} 36. Rd7 {[%emt 0:07:01]} ({Wrong is} 36. Rxd4 $2 Re2 37. f4 g5 $19) 36... Bf4 {[%emt 0:01:08]} 37. Bxd4 {[%emt 0:00:15]} g5 {[%emt 0:00:17]} 38. c4 {[%emt 0:05:26]} Re2 {[%emt 0:00:49][%csl Gf4][%cal Re2h2]} 39. Bg1 {[%emt 0:00:04] Inhibits Rh2+.} h5 {[%emt 0:00:52] Threatens to win with ...g4+.} 40. Rd5 $1 {[%emt 0:00:51]} g4+ {[%emt 0:00:28]} 41. fxg4 {[%emt 0:00:07]} fxg4+ {[%emt 0:00:49]} 42. Kh4 {[%emt 0:00:05]} Rg2 {[%emt 0:00:26]} 43. Rd4 {[%emt 0:07:33]} Bg3+ {[%emt 0:04:17]} 44. Kxh5 {[%emt 0:00:07]} Rxg1 {[%emt 0:00:06]} 45. Rxg4+ {[%emt 0:00:06] KRB-KR} Kf7 {[%emt 0:00:12]} 46. Kg5 {[%emt 0:00:07]} Ke6 {[%emt 0:00:58]} 47. b4 {[%emt 0:00:26][%cal Bb3b4,Bb4b5,Bb5b6,Bb6b7][%mdl 32]} Ke5 {[%emt 0:04:07]} 48. d4+ {[%emt 0:00:40]} Ke6 {[%emt 0:00:47]} 49. Re4+ {[%emt 0:01:36]} Kd6 {[%emt 0:00:07]} 50. Kf5 $1 {[%emt 0:00:12]} Rf1+ {[%emt 0:01:01]} 51. Kg4 {[%emt 0:00:03]} Be1 {[%emt 0:00:23]} 52. b5 {[%emt 0:00:18]} Bc3 {[%emt 0:00:59]} 53. b6 {[%emt 0:01:12]} Bxd4 {[%emt 0:03:42]} 54. Rxd4+ {[%emt 0:00:24] KR-KR} Kc5 {[%emt 0:00:21]} 55. b7 {[%emt 0:01:06] White wants to mate with Rd5+.} Rb1 {[%emt 0:00:32]} 56. Rd7 {[%emt 0:00:31]} Kxc4 {[%emt 0:01:34]} 57. Kf5 {[%emt 0:00:39] Hoping for Ke6.} Kc5 {[%emt 0:00:15]} 58. Ke6 {[%emt 0:00:25] And now Rc7+ would win.} Kc6 {[%emt 0:00:05] Prevents Rc7+.} 59. Re7 {[%emt 0:00:13]} Rxb7 {[%emt 0:00:10]} 60. Rxb7 {[%emt 0:00:06]} Kxb7 {[%emt 0:00:02] Weighted Error Value: White=0.04 (flawless) /Black=0.02 (flawless)} 1/2-1/2

[Event "13th KIIT Festival-A 2022"]
[Site "Bhubaneswar"]
[Date "2022.05.24"]
[Round "3.3"]
[White "Nayak Rajesh"]
[Black "Fedorov, Alexei"]
[Result "0-1"]
[ECO "B43"]
[WhiteElo "2179"]
[BlackElo "2529"]
[Annotator "TA"]
[PlyCount "76"]
[EventDate "2022.05.15"]
[EventType "swiss"]
[EventCountry "IND"]
[SourceTitle "playchess.com"]
[Source "ChessBase"]
[SourceQuality "1"]
[TimeControl "5400+30"]

{[%evp 9,76,35,35,17,25,11,46,0,8,-9,-8,-73,-132,-130,-136,-133,-83,-177,-176,-118,-151,-216,-129,-144,-153,-270,-267,-269,0,0,0,-121,-122,-112,-103,-121,-113,-112,-71,-109,-89,-208,-204,-197,-188,-238,-233,-368,-375,-376,-354,-360,-360,-343,-336,-394,-353,-422,-425,-451,-439,-486,-486,-550,-537,-881,-841,-29991,-29992]} 1. e4 {[%emt 0:00:24]} c5 {[%emt 0:00:06]} 2. Nf3 {[%emt 0:00:11]} e6 {[%emt 0:00:18]} 3. d4 {[%emt 0:00:51]} cxd4 {[%emt 0:00:09]} 4. Nxd4 {[%emt 0:00:09]} a6 {[%emt 0:00:33]} 5. Nc3 {[%emt 0:02:16]} Qc7 {[%emt 0:01:52]} 6. Qf3 {[%emt 0:02:22] B43: Sicilian: Kan Variation: 5 Nc3.} d6 {[%emt 0:06:28]} 7. Be3 {[%emt 0:07:16]} Nf6 {[%emt 0:06:37]} 8. O-O-O {[%emt 0:03:25] White is slightly better.} Nbd7 {[%emt 0:07:10]} 9. Be2 {[%emt 0:03:57]} b5 {[%cal Bb7b5,Bb5b4][%mdl 32] White should prevent ...b4.} 10. e5 {[%emt 0:25:30]} (10. a3 $1 $11 {keeps the balance.}) 10... Bb7 $17 {[%emt 0:13:41]} 11. exd6 {[%emt 0:00:08]} Bxd6 {[%emt 0:00:17]} 12. Qh3 {[%emt 0:00:56][%cal Od4b5] Threatens to win with Ndxb5!} Be7 {[%emt 0:07:35] [#]} ({Black should play} 12... Bb4 13. Bd2 O-O) 13. Rhe1 $146 {[%emt 0:11:51]} (13. Bf3 $17 {keeps fighting.}) ({Predecessor:} 13. Rhg1 b4 14. Na4 Rc8 15. Bd3 Ne5 16. Kb1 Qa5 17. b3 Nxd3 18. cxd3 Nd5 19. Qg3 {½-½ (73) Solozhenkina,E (2258)-Kabanova,E (2095) St Petersburg 2018}) 13... b4 $19 {[%emt 0:04:30]} 14. Na4 {[%emt 0:00:16]} Rc8 {[%emt 0:03:14]} 15. f4 {[%emt 0:03:36]} (15. b3 $17 {might work better.}) 15... Nd5 {[%emt 0:06:11]} ({Better is} 15... Bc6 $19 16. Bxa6 Bxa4 17. Bxc8 Qxc8) 16. Kb1 $17 {[%emt 0:02:02]} Qa5 {[%emt 0:02:55]} (16... Nxf4 $2 17. Bxf4 e5 18. Bg4 $1 $18) 17. b3 {[%emt 0:00:33]} (17. Nxe6 $17 fxe6 18. b3) 17... Nc5 $1 $19 {[%emt 0:00:21]} 18. Nxe6 {[%emt 0:03:23]} Nxa4 {[%emt 0:05:22]} (18... Nxe6 $19 19. Bc4 Nxe3 20. Rxe3 Rxc4 $1 {[%mdl 512]} 21. bxc4 O-O 22. Rxe6 fxe6 23. Qxe6+ Rf7) 19. Nxg7+ $11 {[%emt 0:01:21]} Kf8 {[%emt 0:01:01]} 20. Ne6+ {[%emt 0:02:02]} (20. bxa4 $11 {was the only way to keep the balance.} Bf6 21. Bd4 Bxd4 22. Ne6+ fxe6 23. Rxd4) 20... fxe6 $17 {[%emt 0:02:46]} 21. Qh6+ {[%emt 0:00:13]} Ke8 {[%emt 0:00:24][%cal Bf8e8,Be8d8,Bd8c7,Bc7b8,Bb8a7][%mdl 32] ( -> ...Nac3+)} 22. Bh5+ {[%emt 0:00:35]} Kd8 {[%emt 0:06:03] White must now prevent ...Nac3+.} 23. bxa4 {[%emt 0:02:24]} Kc7 $1 {[%emt 0:00:26]} 24. Qxe6 {[%emt 0:06:39] [#]} Bd6 $1 {[%emt 0:06:33]} 25. Bd4 {[%emt 0:01:39] [#]} (25. Ka1 $17 {was necessary.} Rhd8 26. Ba7) 25... Rhd8 $1 $19 {[%emt 0:00:30]} 26. Bf3 {[%emt 0:03:18][%cal Oe1e5] Re5! is the strong threat.} Kb8 {[%emt 0:04:18]} 27. Bf6 {[%emt 0:09:02]} (27. Bxd5 {was worth a try.} Bxd5 28. Qxd5 (28. Ba7+ $2 Kxa7 29. Qxd5 Qc7 $19) 28... Qxd5 29. Ba7+ Kxa7 30. Rxd5) 27... Nxf6 {[%emt 0:02:48][%cal Bd5f6,Bf6e8,Be8c7][%mdl 32]} (27... Nxf4 28. Bxd8 Rxd8 29. Qf7 $18) 28. Rxd6 {[%emt 0:02:31]} (28. Bxb7 $142 Kxb7 29. Qxf6 (29. Rxd6 $2 Re8 $19)) 28... Re8 {[%emt 0:03:31]} 29. Rb6 {[%emt 0:01:20]} Rc7 {[%emt 0:00:54][%cal Bc8c7,Bc7b7,Bb7b8,Bb8e8][%mdl 32] Chess con chili.} (29... Rxe6 $2 30. Rxb7+ Ka8 31. Rxe6 $16) 30. Rxb7+ {[%emt 0:02:56]} Rxb7 {[%emt 0:00:05]} 31. Qd6+ {[%emt 0:00:04]} Ka7 {[%emt 0:01:27]} ({Less strong is} 31... Rc7 32. Rxe8+ Nxe8 33. Qd8+ Ka7 34. Qa8+ (34. Qxe8 Qc5 $14) 34... Kb6 35. Qb8+ Kc5 36. Qxe8 $16) 32. Rxe8 {[%emt 0:00:22]} Nxe8 {[%emt 0:00:09]} 33. Qf8 {[%emt 0:01:42]} Rb8 {[%emt 0:00:36]} 34. Qe7+ {[%emt 0:00:22]} Qc7 {[%emt 0:00:59]} 35. Qe3+ {[%emt 0:00:13]} Qb6 {[%emt 0:00:07]} 36. Qe7+ {[%emt 0:00:07]} Nc7 {[%emt 0:00:07] Strongly threatening ...Re8.} 37. Qe4 {[%emt 0:02:15]} Re8 {[%emt 0:00:24]} 38. a5 {[%emt 0:00:11]} Qg1+ {[%emt 0:00:08] Weighted Error Value: White=0.78/Black=0.15 (very precise)} 0-1

[Event "13th KIIT Festival-A 2022"]
[Site "Bhubaneswar"]
[Date "2022.05.24"]
[Round "3.5"]
[White "Aleksandrov, Aleksej"]
[Black "Dhananjay S"]
[Result "1-0"]
[ECO "D46"]
[WhiteElo "2492"]
[BlackElo "2218"]
[Annotator "TA"]
[PlyCount "62"]
[EventDate "2022.05.15"]
[EventType "swiss"]
[EventCountry "IND"]
[SourceTitle "playchess.com"]
[Source "ChessBase"]
[SourceQuality "1"]
[TimeControl "5400+30"]

{[%evp 14,62,28,23,26,15,17,31,33,0,2,0,30,50,64,25,16,18,25,15,36,27,27,30,29,41,11,38,14,0,0,0,85,78,91,89,114,126,130,130,129,120,115,131,135,134,141,128,179,187,818]} 1. d4 {[%emt 0:00:01]} d5 {[%emt 0:00:17]} 2. Nf3 {[%emt 0:00:29]} Nf6 {[%emt 0:00:04]} 3. c4 {[%emt 0:00:17]} c6 {[%emt 0:00:04]} 4. e3 {[%emt 0:00:11]} e6 {[%emt 0:00:05]} 5. Bd3 {[%emt 0:00:05]} dxc4 {[%emt 0:00:03]} 6. Bxc4 {[%emt 0:00:03]} Nbd7 {[%emt 0:00:12]} 7. O-O {[%emt 0:00:09]} Bd6 {[%emt 0:00:03]} 8. Nc3 {[%emt 0:01:29]} b5 {[%emt 0:00:04] is the new trend. D46: Semi-Slav: 5 e3 Nbd7 6 Bd3, Black avoids the Meran.} 9. Bb3 {[%emt 0:00:06]} b4 {[%emt 0:00:04]} 10. Na4 {[%emt 0:00:04]} Bb7 {[%emt 0:00:03] White is slightly better.} 11. Qc2 {[%emt 0:03:22] [#]} Rc8 $146 {[%emt 0:05:51]} (11... c5 $5) ({Predecessor:} 11... Qe7 12. e4 e5 13. dxe5 Nxe5 14. Nd4 c5 15. Nf5 Bxe4 16. Nxd6+ Qxd6 17. Qxc5 Qxc5 18. Nxc5 {1-0 (28) Handke,F (2513)-Saltaev,M (2492) Germany 2010}) 12. Nc5 {[%emt 0:05:55]} Bxc5 {[%emt 0:01:07]} 13. dxc5 {[%emt 0:00:04]} Ba6 {[%emt 0:02:40]} 14. Rd1 {[%emt 0:08:45] Hoping for e4.} (14. Re1 $5 {[%cal Rc1d2]}) 14... Qa5 {[%emt 0:00:19]} 15. Bd2 {[%emt 0:00:12][%cal Bc1d2,Bd2b4,Bb4a3][%mdl 32] White wants to play Rdc1.} Nxc5 {[%emt 0:00:34] ...Bd3 is the strong threat.} 16. Bc4 {[%emt 0:00:04] Inhibits Bd3.} Qb6 {[%emt 0:07:12]} 17. Bxa6 {[%emt 0:11:21]} Nxa6 {[%emt 0:03:00]} 18. e4 {[%emt 0:00:05]} Qc5 {[%emt 0:11:55]} 19. Qxc5 {[%emt 0:04:04]} Nxc5 {[%emt 0:00:11]} 20. Bxb4 {[%emt 0:00:04]} Ncxe4 {[%emt 0:00:04]} 21. Ne5 {[%emt 0:04:32]} Nd5 {[%emt 0:11:27] Pair of Knights!} 22. Ba3 {[%emt 0:00:06]} f6 {[%emt 0:16:06]} (22... c5 $1 $11) 23. Nd3 $16 {[%emt 0:04:25]} Ng5 {[%emt 0:12:20] [#]} 24. Re1 $1 {[%emt 0:00:38]} e5 {[%emt 0:03:30] [#]} 25. Nxe5 {[%emt 0:06:35][%mdl 512]} Ne6 {[%emt 0:00:04]} (25... Nh3+ 26. gxh3) 26. Nc4 {[%emt 0:02:19]} Kd7 {[%emt 0:00:05]} 27. Rad1 $36 {[%emt 0:00:04][%mdl 2048] Against Nd4. White is on the roll.} Rce8 {[%emt 0:02:15]} 28. Nd6 {[%emt 0:02:20] White is more active.} Rb8 {[%emt 0:01:25]} 29. h4 {[%emt 0:05:10]} Nec7 {[%emt 0:01:04]} 30. Nf5 {[%emt 0:03:52] aiming for Re7+.} Ne6 {[%emt 0:00:35]} (30... Rhe8 $16 {was worth a try.}) 31. Nxg7 {[%emt 0:00:19]} Ra8 $2 {[%emt 0:23:17] Weighted Error Value: White=0.04 (flawless) /Black=0.12 (very precise)} (31... Nxg7 32. Re7+ Kc8 33. Rxg7 Rb7) 1-0